bitfinex/quotes_BTCUSD_20260215
["timestamp","ask_amount","ask_price","bid_price","bid_amount"]
[1771161709944,0.07196912,69475.0,69467.0,0.07197594]
[1771161710580,0.07196912,69475.0,69468.0,0.07197553]
[1771161711001,0.07200766,69476.0,69468.0,0.07197553]
[1771161712063,0.07200766,69476.0,69463.0,0.0002]
[1771161712064,0.31856135,69474.0,69462.0,0.00016962]
[1771161712280,0.07198076,69463.0,69462.0,0.00016962]
[1771161713198,0.03068176,69474.0,69462.0,0.00016962]
[1771161713199,4e-05,69474.0,69462.0,0.00016962]
[1771161713432,0.07197775,69466.0,69462.0,0.00012962]
[1771161713672,0.07198076,69463.0,69462.0,0.00012962]
[1771161716038,0.07197539,69469.0,69464.0,0.0002]
[1771161716247,0.07197622,69468.0,69464.0,0.0002]
[1771161716918,0.07197662,69467.0,69464.0,0.0002]
[1771161717398,4e-05,69470.0,69464.0,0.0002]
[1771161717629,4e-05,69472.0,69464.0,0.0002]
[1771161717630,4e-05,69472.0,69467.0,0.07197566]
[1771161717867,0.07200942,69474.0,69468.0,0.28700351]
[1771161718071,0.0719705,69473.0,69470.0,0.2614592]
[1771161718483,0.0719705,69473.0,69466.0,0.07197735]
[1771161718484,0.0719705,69473.0,69466.0,0.33343655]
[1771161719097,4e-05,69474.0,69467.0,0.07197659]
[1771161719098,0.07200972,69474.0,69467.0,0.07197659]
[1771161719349,0.07197044,69473.0,69467.0,0.07197659]
[1771161719538,0.07197042,69473.0,69466.0,0.33343496]
[1771161720424,0.07200976,69474.0,69467.0,0.07197641]
[1771161721089,0.07200976,69474.0,69467.0,0.07197662]
[1771161721290,0.07197045,69473.0,69467.0,0.07197662]
[1771161721493,0.07197191,69472.0,69466.0,0.2614592]
[1771161721702,0.07197045,69473.0,69466.0,0.33343644]
[1771161722110,0.0720096,69474.0,69467.0,0.07197648]
[1771161722671,0.0720096,69474.0,69467.0,0.2614592]
[1771161722884,0.07200968,69474.0,69467.0,0.2614592]
[1771161723092,0.04859839,69474.0,69467.0,0.33343507]
[1771161723663,0.07197094,69473.0,69467.0,0.2614592]
[1771161724458,0.07196876,69475.0,69467.0,0.2614592]
[1771161724676,0.0719698,69474.0,69467.0,0.33343566]
[1771161724870,0.07196938,69474.0,69466.0,0.07197577]
[1771161725075,0.07197044,69473.0,69467.0,0.33343563]
[1771161725422,0.0719695,69474.0,69467.0,0.2614592]
[1771161725650,0.00044,69476.0,69467.0,0.2614592]
[1771161725859,4e-05,69478.0,69471.0,0.02554431]
[1771161726068,0.07196925,69475.0,69471.0,0.27548281]
[1771161726281,0.07196925,69475.0,69471.0,0.2499385]
[1771161726493,0.07196925,69475.0,69468.0,0.07197539]
[1771161727153,0.07196965,69474.0,69468.0,0.07197539]
[1771161727358,0.07197043,69473.0,69467.0,0.34745918]
[1771161727556,0.07197043,69473.0,69467.0,0.34745941]
[1771161727970,0.07196951,69474.0,69467.0,0.34745941]
[1771161728180,8e-05,69470.0,69467.0,0.34745941]
[1771161728850,8e-05,69470.0,69466.0,4e-05]
[1771161729327,0.07205417,69470.0,69466.0,4e-05]
[1771161729792,8e-05,69470.0,69466.0,0.32195518]
[1771161730033,8e-05,69470.0,69467.0,0.07197655]
[1771161730245,4e-05,69472.0,69470.0,0.2499385]
[1771161730670,4e-05,69474.0,69471.0,0.02554431]
[1771161730895,4e-05,69474.0,69472.0,0.2499385]
[1771161731538,4e-05,69474.0,69469.0,0.09751855]
[1771161731748,4e-05,69474.0,69470.0,0.2499385]
[1771161733607,4e-05,69474.0,69469.0,0.02554431]
[1771161733608,4e-05,69474.0,69469.0,0.00033145]
[1771161733847,4e-05,69474.0,69468.0,0.07197383]
[1771161734081,4e-05,69474.0,69470.0,0.25244649]
[1771161736207,0.07200939,69474.0,69467.0,0.07197628]
[1771161736609,0.07200939,69474.0,69466.0,0.32446229]
[1771161737046,0.07200939,69474.0,69467.0,0.07197662]
[1771161737252,0.07197061,69473.0,69468.0,0.0002]
[1771161737631,0.07197149,69472.0,69468.0,0.0002]
[1771161737832,0.07197052,69473.0,69468.0,0.0002]
[1771161738337,0.07197052,69473.0,69468.0,0.25264649]
[1771161739705,0.07180665,69473.0,69468.0,0.25264649]
[1771161740568,0.07164282,69473.0,69468.0,0.25264649]
[1771161741608,0.07147897,69473.0,69468.0,0.25264649]
[1771161741805,4e-05,69474.0,69468.0,0.25264649]
[1771161742051,4e-05,69474.0,69470.0,0.07197291]
[1771161743014,4e-05,69474.0,69470.0,0.25244649]
[1771161744801,4e-05,69474.0,69469.0,0.07197454]
[1771161745505,4e-05,69474.0,69469.0,0.32442103]
[1771161746028,4e-05,69474.0,69469.0,0.25244649]
[1771161746650,4e-05,69474.0,69468.0,0.07217513]
[1771161746859,4e-05,69474.0,69453.0,0.28517456]
[1771161746860,0.02416423,69472.0,69453.0,0.28517456]
[1771161747068,8.312e-05,69472.0,69468.0,0.26200623]
[1771161747323,0.07205523,69472.0,69468.0,0.26200623]
[1771161747525,0.07197289,69471.0,69468.0,0.26200623]
[1771161747697,0.07197289,69471.0,69469.0,0.0002]
[1771161748346,0.07197289,69471.0,69468.0,0.26200623]
[1771161749382,0.00016386,69470.0,69468.0,0.26200623]
[1771161749603,0.07197289,69471.0,69468.0,0.26200623]
[1771161750043,0.07197289,69471.0,69465.0,0.02316833]
[1771161750240,0.07197289,69471.0,69450.0,0.0003316]
[1771161750450,0.02412423,69468.0,69454.0,0.0248169]
[1771161750644,0.09611328,69455.0,69454.0,1e-08]
[1771161752175,0.09711328,69455.0,69454.0,1e-08]
[1771161753527,0.09611328,69455.0,69454.0,1e-08]
[1771161754332,0.01509111,69455.0,69454.0,1e-08]
[1771161754557,0.04920383,69456.0,69454.0,0.2643739]
[1771161754752,0.12119254,69456.0,69450.0,0.02349993]
[1771161754952,0.12119254,69456.0,69451.0,0.61263764]
[1771161755541,0.0719891,69455.0,69451.0,0.61263764]
[1771161755928,0.07199111,69454.0,69450.0,0.0003316]
[1771161756131,0.07199091,69454.0,69450.0,0.0003316]
[1771161758268,4e-05,69452.0,69450.0,0.0003316]
[1771161758849,4e-05,69452.0,69447.0,0.27581482]
[1771161758850,4e-05,69452.0,69447.0,0.27614342]
[1771161759033,4e-05,69452.0,69448.0,0.61263764]
[1771161760932,4e-05,69452.0,69447.0,0.09569424]
[1771161760933,4e-05,69452.0,69447.0,0.02369693]
[1771161761140,0.07199631,69448.0,69447.0,0.0005286]
[1771161762052,0.0719978,69447.0,69441.0,0.02316833]
[1771161762254,0.07200127,69444.0,69441.0,0.0232979]
[1771161762508,0.02490278,69451.0,69433.0,0.27561482]
[1771161762706,0.07199869,69446.0,69433.0,0.27574442]
[1771161762837,0.07199869,69446.0,69434.0,0.28804189]
[1771161763040,0.07199953,69445.0,69438.0,0.07200608]
[1771161763243,0.07199869,69446.0,69439.0,0.07200558]
[1771161763443,0.0718348,69446.0,69438.0,0.07200608]
[1771161763659,0.07200137,69444.0,69434.0,0.24421152]
[1771161763867,4e-05,69452.0,69433.0,0.24426013]
[1771161764071,0.02291902,69450.0,69434.0,0.24413053]
[1771161764277,0.07200295,69442.0,69433.0,0.02372944]
[1771161764473,0.07200299,69442.0,69433.0,0.02372944]
[1771161764699,4e-05,69452.0,69441.0,0.0002]
[1771161764914,0.07200253,69442.0,69441.0,0.0002]
[1771161765129,0.07199626,69449.0,69441.0,0.0002]
[1771161765317,0.07199626,69449.0,69441.0,0.24433053]
[1771161765517,0.28801086,69452.0,69441.0,0.24433053]
[1771161765518,0.07183525,69446.0,69441.0,0.0002]
[1771161765724,0.07199424,69451.0,69441.0,0.0002]
[1771161765946,0.07200196,69443.0,69441.0,0.0002]
[1771161766449,0.07200196,69443.0,69431.0,0.28805301]
[1771161766454,0.02291902,69440.0,69407.0,0.43222795]
[1771161766655,0.07200478,69440.0,69425.0,0.24413053]
[1771161766869,0.07200593,69439.0,69433.0,0.26773037]
[1771161767072,0.07200549,69441.0,69434.0,0.22695316]
[1771161767272,0.07200582,69439.0,69436.0,0.24413053]
[1771161767913,0.07200663,69440.0,69436.0,0.24413053]
[1771161768116,0.02291902,69451.0,69436.0,0.24413053]
[1771161768308,0.07167624,69441.0,69436.0,0.24413053]
[1771161768624,0.07200771,69437.0,69436.0,0.24413053]
[1771161768798,0.07184375,69437.0,69436.0,0.24413053]
[1771161769048,0.07200709,69438.0,69436.0,0.24413053]
[1771161769963,0.28801309,69442.0,69430.0,0.07201458]
[1771161770393,0.07200551,69440.0,69433.0,0.24413053]
[1771161770601,0.07200698,69438.0,69435.0,0.24413053]
[1771161770836,0.07200698,69438.0,69436.0,0.26773037]
[1771161771822,0.07200698,69438.0,69436.0,0.02359984]
[1771161772565,0.07200698,69438.0,69432.0,0.26773037]
[1771161772892,0.07200781,69437.0,69433.0,0.02359984]
[1771161773099,0.07200781,69437.0,69434.0,0.24413053]
[1771161773386,0.07217173,69437.0,69434.0,0.24409053]
[1771161773842,0.00016392,69437.0,69434.0,0.24409053]
[1771161774069,0.00016392,69437.0,69431.0,0.07201375]
[1771161774258,0.00016392,69437.0,69430.0,0.0720146]
[1771161775252,0.0721718,69437.0,69429.0,0.04176989]
[1771161775461,0.0721718,69437.0,69430.0,0.07201434]
[1771161776024,8.5e-05,69435.0,69430.0,0.07201434]
[1771161776483,8.5e-05,69435.0,69430.0,0.33974471]
[1771161776708,8.5e-05,69435.0,69430.0,0.26773037]
[1771161777111,8.5e-05,69435.0,69430.0,0.33974515]
[1771161778573,8e-05,69440.0,69430.0,0.33974515]
[1771161778574,1e-08,69452.0,69436.0,4e-05]
[1771161778775,1e-08,69452.0,69441.0,0.24413053]
[1771161778919,1e-08,69452.0,69441.0,0.26773037]
[1771161779123,0.07199596,69449.0,69441.0,0.26773037]
[1771161779357,0.07199533,69449.0,69441.0,0.33973391]
[1771161780180,0.07199533,69449.0,69442.0,0.07200234]
[1771161780379,0.07199311,69452.0,69442.0,0.07200251]
[1771161780805,0.07199456,69450.0,69442.0,0.07200251]
[1771161781448,0.07199704,69448.0,69440.0,0.07208255]
[1771161781606,0.07199537,69449.0,69441.0,0.07200269]
[1771161782022,0.07199537,69449.0,69442.0,0.07200247]
[1771161782392,0.07199537,69449.0,69441.0,0.07200339]
[1771161782595,0.07199526,69450.0,69442.0,0.07200245]
[1771161783543,0.07199333,69451.0,69443.0,0.07200136]
[1771161783747,0.11207334,69479.0,69442.0,0.07200245]
[1771161783748,0.0004,69461.0,69446.0,4e-05]
[1771161783963,0.07198788,69457.0,69449.0,0.0955943]
[1771161784153,0.07198788,69457.0,69449.0,0.33972483]
[1771161784306,0.0004,69461.0,69446.0,4e-05]
[1771161784509,0.07199328,69451.0,69446.0,4e-05]
[1771161784734,0.07199249,69452.0,69446.0,4e-05]
[1771161784934,0.02291902,69456.0,69446.0,4e-05]
[1771161785342,0.07199211,69453.0,69446.0,4e-05]
[1771161785543,0.07199211,69453.0,69445.0,0.071999]
[1771161786345,0.0004,69461.0,69415.0,1.44059668]
[1771161786534,0.0004,69461.0,69452.0,0.02359984]
[1771161786735,0.0004,69461.0,69451.0,0.24413053]
[1771161786736,0.0004,69461.0,69446.0,0.07199769]
[1771161786935,0.07198836,69456.0,69448.0,0.07199551]
[1771161787164,0.07198905,69455.0,69444.0,0.02359984]
[1771161787386,0.07198836,69456.0,69447.0,0.07199712]
[1771161787726,0.07199007,69455.0,69447.0,0.07199712]
[1771161787863,0.07199007,69455.0,69446.0,0.07199824]
[1771161788072,0.07199009,69454.0,69446.0,0.07199824]
[1771161788311,0.07199009,69454.0,69447.0,0.07199735]
[1771161788312,4e-05,69448.0,69447.0,0.07199735]
[1771161790546,4e-05,69448.0,69446.0,0.07199781]
[1771161790745,0.07203082,69454.0,69444.0,0.07199968]
[1771161790746,0.0004,69481.0,69469.0,0.07197454]
[1771161791023,0.0004,69481.0,69454.0,4e-05]
[1771161791024,0.07236218,69481.0,69460.0,4e-05]
[1771161791253,0.07196444,69479.0,69470.0,0.07197163]
[1771161791468,0.07196444,69479.0,69469.0,0.02499999]
[1771161791469,0.07200346,69480.0,69472.0,0.07197097]
[1771161791670,0.0004,69488.0,69484.0,0.07195817]
[1771161791870,0.00052948,69488.0,69482.0,0.02499999]
[1771161792070,0.00052948,69488.0,69480.0,0.24413053]
[1771161792071,0.0922,69493.0,69485.0,0.26913052]
[1771161792271,0.16414969,69493.0,69485.0,0.34108825]
[1771161792532,0.0922,69493.0,69488.0,0.02499999]
[1771161792737,0.0922,69493.0,69490.0,0.02499999]
[1771161792944,0.15348,69505.0,69490.0,0.2225263]
[1771161792945,0.07194467,69498.0,69490.0,0.2225263]
[1771161793155,0.07194359,69499.0,69491.0,0.02499999]
[1771161793361,0.07193962,69503.0,69489.0,0.2561266]
[1771161793569,0.07194052,69502.0,69491.0,0.2561266]
[1771161793772,0.07194147,69501.0,69493.0,0.00064219]
[1771161794182,0.22541738,69505.0,69495.0,0.07194762]
[1771161794395,0.15348,69505.0,69497.0,0.02281558]
[1771161794607,0.0719357,69507.0,69497.0,0.02281558]
[1771161794858,4e-05,69510.0,69497.0,0.02281558]
[1771161794859,0.07193682,69506.0,69497.0,0.02281558]
[1771161795265,0.0719392,69504.0,69497.0,0.02281558]
[1771161795473,4e-05,69510.0,69497.0,0.02281558]
[1771161795652,0.07193729,69505.0,69497.0,0.09476092]
[1771161795913,0.07194145,69501.0,69500.0,4e-05]
[1771161796118,0.0002393,69513.0,69500.0,4e-05]
[1771161796322,0.07193937,69503.0,69500.0,4e-05]
[1771161796738,0.07193855,69504.0,69500.0,4e-05]
[1771161797153,0.07193945,69503.0,69500.0,4e-05]
[1771161797622,0.07193747,69505.0,69500.0,4e-05]
[1771161797850,0.07193747,69505.0,69500.0,0.02492034]
[1771161798267,0.0719383,69504.0,69500.0,0.02492034]
[1771161799372,0.07193752,69505.0,69500.0,0.02492034]
[1771161800192,0.07193289,69510.0,69502.0,0.0719396]
[1771161800396,0.07193281,69510.0,69503.0,0.28100694]
[1771161800728,0.07193646,69506.0,69500.0,4e-05]
[1771161800903,0.07193396,69509.0,69500.0,0.0719817]
[1771161801207,0.07193396,69509.0,69502.0,0.02488034]
[1771161801410,0.0719353,69507.0,69502.0,0.02488034]
[1771161801971,0.89403948,69519.0,69464.0,0.02488034]
[1771161801972,0.26178691,69481.0,69464.0,0.02488034]
[1771161802180,4e-05,69500.0,69461.0,0.2561266]
[1771161802181,4e-05,69490.0,69461.0,0.2561266]
[1771161802381,0.07196303,69481.0,69480.0,4e-05]
[1771161802613,0.26178691,69481.0,69470.0,4e-05]
[1771161802915,4e-05,69490.0,69452.0,4e-05]
[1771161802916,0.07198905,69455.0,69452.0,4e-05]
[1771161803115,0.07198905,69455.0,69432.0,0.18732]
[1771161803116,0.07198905,69455.0,69426.0,0.2561266]
[1771161803117,0.26214691,69448.0,69426.0,0.2561266]
[1771161803320,0.26214691,69448.0,69422.0,0.0002]
[1771161803321,0.26214691,69448.0,69430.0,0.2561266]
[1771161803322,4e-05,69440.0,69430.0,0.2561266]
[1771161803525,4e-05,69448.0,69434.0,0.07201025]
[1771161803878,0.07203726,69448.0,69438.0,0.27894218]
[1771161804068,0.07203726,69448.0,69444.0,0.07200023]
[1771161804069,4e-05,69448.0,69444.0,0.07200023]
[1771161804210,4e-05,69448.0,69445.0,0.07199864]
[1771161804406,4e-05,69448.0,69444.0,0.09481581]
[1771161804804,4e-05,69448.0,69445.0,0.07199902]
[1771161805229,4e-05,69448.0,69435.0,0.28803804]
[1771161805230,0.2879894,69447.0,69427.0,0.28807151]
[1771161805443,0.0241185,69439.0,69423.0,0.00032]
[1771161805644,0.07201685,69429.0,69423.0,0.00075229]
[1771161806045,0.07201104,69434.0,69425.0,0.07201998]
[1771161806508,0.07200986,69435.0,69425.0,0.07201998]
[1771161806709,4e-05,69478.0,69436.0,0.07200863]
[1771161806710,0.07199866,69446.0,69436.0,0.07200863]
[1771161807049,0.26194691,69453.0,69434.0,0.07201023]
[1771161807050,0.07200175,69443.0,69434.0,0.07201023]
[1771161807459,0.07200175,69443.0,69432.0,0.07201238]
[1771161807664,0.07200261,69442.0,69433.0,0.07201103]
[1771161808146,0.07200284,69442.0,69434.0,0.07201079]
[1771161808552,0.07200134,69444.0,69435.0,0.07200959]
[1771161808759,0.0720026,69442.0,69434.0,0.07201079]
[1771161808955,0.07200134,69444.0,69435.0,0.07200953]
[1771161809073,0.07200134,69444.0,69434.0,0.07201079]
[1771161809280,0.07200286,69442.0,69434.0,0.07201079]
[1771161809520,0.07200029,69445.0,69436.0,0.07200787]
[1771161809844,0.0720015,69443.0,69435.0,0.2561266]
[1771161809995,0.28799202,69447.0,69435.0,0.32813605]
[1771161810251,0.07200126,69444.0,69436.0,0.07200856]
[1771161810818,0.07199942,69445.0,69435.0,0.32813619]
[1771161811024,0.07200133,69444.0,69435.0,0.07200968]
[1771161811226,0.07200133,69444.0,69436.0,0.27894218]
[1771161811645,4e-05,69448.0,69436.0,0.27894218]
[1771161812081,0.0719932,69451.0,69447.0,0.2562066]
[1771161812284,4e-05,69452.0,69447.0,0.27902218]
[1771161812640,0.07171434,69450.0,69447.0,0.27894218]
[1771161812851,0.07171434,69450.0,69447.0,0.02281558]
[1771161813053,0.00044,69470.0,69445.0,0.2561266]
[1771161813264,0.00044,69470.0,69460.0,4e-05]
[1771161813265,0.07210389,69470.0,69460.0,4e-05]
[1771161813694,0.0719761,69468.0,69460.0,4e-05]
[1771161813831,0.07210498,69470.0,69460.0,4e-05]
[1771161814032,0.07197503,69469.0,69460.0,4e-05]
[1771161814484,0.00012958,69470.0,69460.0,4e-05]
[1771161814931,0.00012958,69470.0,69468.0,0.07197475]
[1771161815176,4e-05,69476.0,69475.0,0.07196833]
[1771161815381,4e-05,69476.0,69466.0,0.02281558]
[1771161815382,1e-08,69480.0,69479.0,0.07196419]
[1771161815581,1e-08,69480.0,69468.0,4e-05]
[1771161815582,0.0241185,69475.0,69450.0,0.27898218]
[1771161815768,0.0719775,69467.0,69460.0,0.00016957]
[1771161815966,0.07197059,69473.0,69460.0,0.00016957]
[1771161816118,0.07197059,69473.0,69462.0,0.07198083]
[1771161816327,0.07197059,69473.0,69464.0,0.07197931]
[1771161816531,0.07197395,69470.0,69461.0,0.07198273]
[1771161816730,0.07197395,69470.0,69460.0,0.00016957]
[1771161817136,0.07197279,69471.0,69460.0,0.07215304]
[1771161817341,0.28791114,69476.0,69460.0,0.07215304]
[1771161817342,4e-05,69476.0,69460.0,0.00016957]
[1771161817577,0.07197458,69469.0,69460.0,0.07215323]
[1771161818325,0.07185458,69469.0,69468.0,4e-05]
[1771161820102,0.0241185,69489.0,69469.0,0.2561266]
[1771161820304,0.0241185,69488.0,69470.0,4e-05]
[1771161820505,0.0960744,69487.0,69476.0,0.07196672]
[1771161820708,0.07195982,69484.0,69473.0,0.07196858]
[1771161820912,0.26178691,69489.0,69470.0,4e-05]
[1771161821112,4e-05,69500.0,69470.0,4e-05]
[1771161821113,0.0241185,69478.0,69470.0,4e-05]
[1771161821329,0.07196955,69474.0,69470.0,4e-05]
[1771161821531,0.09608709,69475.0,69470.0,4e-05]
[1771161821686,0.0241185,69475.0,69470.0,4e-05]
[1771161821886,0.57547714,69508.0,69470.0,4e-05]
[1771161822109,0.07196291,69481.0,69472.0,0.07197042]
[1771161822373,0.07196291,69481.0,69470.0,0.07201261]
[1771161822374,0.07196521,69479.0,69470.0,0.07201261]
[1771161822638,0.09608371,69479.0,69470.0,0.07201261]
[1771161823421,0.07196546,69478.0,69470.0,0.07201261]
[1771161823624,0.09578399,69478.0,69470.0,0.07201261]
[1771161824571,0.02381853,69478.0,69471.0,0.07197244]
[1771161825031,0.07196727,69477.0,69470.0,4e-05]
[1771161825256,0.02381853,69478.0,69460.0,0.00016957]
[1771161825257,0.07197774,69466.0,69460.0,0.00016957]
[1771161825473,0.07197962,69465.0,69460.0,0.00016957]
[1771161825675,0.07197975,69464.0,69460.0,0.00016957]
[1771161825888,0.071979,69465.0,69460.0,0.00016957]
[1771161826107,0.07198043,69464.0,69455.0,0.0719883]
[1771161826320,0.07198472,69460.0,69451.0,0.07199237]
[1771161826529,0.07198472,69460.0,69450.0,4e-05]
[1771161826530,0.09580167,69461.0,69452.0,0.07199199]
[1771161826751,0.07198391,69460.0,69452.0,0.07199199]
[1771161827516,0.07198495,69459.0,69452.0,0.07199199]
[1771161827728,0.07198391,69460.0,69447.0,0.0002]
[1771161827729,0.25950094,69457.0,69447.0,0.0002]
[1771161827929,0.02381853,69456.0,69447.0,0.0002]
[1771161828532,0.07199186,69453.0,69447.0,0.0002]
[1771161828737,0.07199262,69452.0,69447.0,0.0002]
[1771161829337,4e-05,69470.0,69451.0,0.27292569]
[1771161829538,4e-05,69470.0,69459.0,0.28793623]
[1771161829873,4e-05,69470.0,69463.0,0.0719805]
[1771161830200,0.07197458,69469.0,69459.0,0.07198431]
[1771161830322,4e-05,69470.0,69459.0,0.07198431]
[1771161830520,0.07197482,69469.0,69460.0,0.07198312]
[1771161830773,0.07197482,69469.0,69461.0,0.07198272]
[1771161831122,0.07201375,69470.0,69461.0,0.07198272]
[1771161831857,4e-05,69470.0,69462.0,0.07198173]
[1771161832275,4e-05,69470.0,69463.0,0.07198066]
[1771161833306,4e-05,69466.0,69463.0,0.07198066]
[1771161833717,4e-05,69466.0,69462.0,0.07198153]
[1771161835290,4e-05,69466.0,69463.0,0.05426484]
[1771161836598,4e-05,69466.0,69464.0,0.07197963]
[1771161837387,4e-05,69466.0,69463.0,0.05426484]
[1771161838922,4e-05,69466.0,69464.0,0.07197952]
[1771161839680,4e-05,69466.0,69463.0,0.07198048]
[1771161840029,4e-05,69466.0,69460.0,0.0002]
[1771161840030,0.02381853,69473.0,69460.0,0.0002]
[1771161840031,4e-05,69494.0,69471.0,0.27292569]
[1771161840249,0.00118146,69492.0,69472.0,0.27292569]
[1771161840457,0.00162146,69490.0,69478.0,0.07196435]
[1771161840673,0.00162146,69490.0,69473.0,0.02440926]
[1771161840674,0.07195772,69486.0,69476.0,0.07196636]
[1771161840902,0.07195612,69487.0,69473.0,0.02440926]
[1771161841144,0.07195612,69487.0,69474.0,0.28787747]
[1771161841317,0.07195612,69487.0,69478.0,0.07196445]
[1771161841524,0.07208579,69487.0,69478.0,0.07196445]
[1771161841693,0.00012967,69487.0,69474.0,0.07196889]
[1771161841896,0.07195921,69484.0,69474.0,0.07196936]
[1771161842124,0.07196582,69478.0,69468.0,4e-05]
[1771161842326,0.07196522,69478.0,69469.0,0.07197429]
[1771161842792,0.07197222,69472.0,69468.0,4e-05]
[1771161843395,0.25950094,69478.0,69460.0,0.0002]
[1771161843396,0.07200828,69476.0,69460.0,0.0002]
[1771161843620,0.07197045,69473.0,69463.0,0.07198046]
[1771161843826,4e-05,69476.0,69460.0,0.0002]
[1771161844291,4e-05,69476.0,69468.0,0.02440926]
[1771161844529,4e-05,69476.0,69469.0,0.07197412]
[1771161844767,4e-05,69476.0,69465.0,0.07197869]
[1771161844985,4e-05,69476.0,69471.0,0.07197222]
[1771161845606,4e-05,69476.0,69472.0,0.07197144]
[1771161846036,4e-05,69476.0,69470.0,0.07197249]
[1771161846240,4e-05,69476.0,69459.0,0.07198466]
[1771161846241,0.00122146,69476.0,69459.0,0.07198466]
[1771161846451,0.07197116,69473.0,69460.0,0.02460926]
[1771161846655,0.07197147,69472.0,69465.0,0.054842]
[1771161847147,0.07197147,69472.0,69464.0,0.07197948]
[1771161847508,0.07197651,69468.0,69460.0,0.09659229]
[1771161847702,0.0719747,69469.0,69462.0,0.07198171]
[1771161848125,4e-05,69464.0,69461.0,0.07194273]
[1771161848329,4e-05,69464.0,69460.0,0.02460926]
[1771161848330,4e-05,69464.0,69460.0,0.0002]
[1771161849281,0.00015195,69464.0,69460.0,0.0002]
[1771161852351,0.00015195,69464.0,69460.0,0.072183]
[1771161852552,0.00015195,69464.0,69460.0,0.0002]
[1771161853818,0.00015195,69464.0,69459.0,0.064814]
[1771161854029,0.00118146,69472.0,69454.0,0.02440926]
[1771161854030,0.00162146,69490.0,69478.0,0.07196469]
[1771161854229,0.00162146,69490.0,69476.0,0.07196684]
[1771161854230,0.00118146,69489.0,69476.0,0.07196684]
[1771161854479,0.0719579,69486.0,69477.0,0.07196571]
[1771161854651,0.00118146,69489.0,69477.0,0.07196571]
[1771161854652,0.00118146,69489.0,69477.0,0.07196624]
[1771161855029,0.0004,69477.0,69472.0,0.02440926]
[1771161855235,0.0004,69477.0,69474.0,0.07196855]
[1771161855669,0.0004,69477.0,69475.0,0.07196749]
[1771161855905,0.0004,69477.0,69475.0,0.07196833]
[1771161856439,0.0004,69484.0,69473.0,0.02440926]
[1771161856574,0.0004,69484.0,69479.0,0.07196373]
[1771161856783,0.0004,69484.0,69478.0,0.071965]
[1771161857218,0.0004,69484.0,69470.0,4e-05]
[1771161857219,0.07197045,69473.0,69470.0,4e-05]
[1771161857415,0.07197451,69470.0,69459.0,0.09639392]
[1771161857586,0.07197547,69469.0,69460.0,0.07218374]
[1771161857795,0.27261417,69471.0,69460.0,0.0002]
[1771161857990,0.07198061,69464.0,69460.0,0.0002]
[1771161858275,0.00118146,69470.0,69460.0,0.0002]
[1771161858399,0.0719757,69468.0,69460.0,0.0002]
[1771161858600,0.003654,69462.0,69460.0,0.0002]
[1771161860414,9.329e-05,69468.0,69460.0,0.09659285]
[1771161860854,9.329e-05,69468.0,69460.0,0.02460926]
[1771161861285,9.329e-05,69468.0,69462.0,0.02440926]
[1771161861478,0.07197029,69475.0,69466.0,0.02440926]
[1771161861766,0.00122146,69480.0,69466.0,0.02440926]
[1771161861767,0.07196977,69474.0,69466.0,0.02440926]
[1771161862165,0.07197079,69473.0,69466.0,0.02440926]
[1771161863094,0.07197019,69475.0,69464.0,0.17419676]
[1771161863298,4e-05,69468.0,69466.0,0.02362501]
[1771161864886,4e-05,69468.0,69464.0,0.19782177]
[1771161865090,4e-05,69468.0,69464.0,0.02362501]
[1771161865492,0.07197745,69467.0,69464.0,0.02362501]
[1771161865697,0.07197745,69467.0,69459.0,0.36294458]
[1771161865908,8.081e-05,69467.0,69459.0,0.36294458]
[1771161866129,8.081e-05,69467.0,69460.0,0.02382501]
[1771161866503,8.081e-05,69467.0,69460.0,0.09580885]
[1771161866935,0.07197842,69466.0,69460.0,0.02382501]
[1771161867071,0.07205764,69467.0,69460.0,0.02382501]
[1771161867465,8.081e-05,69467.0,69460.0,0.09580883]
[1771161869337,4e-05,69480.0,69468.0,0.02362501]
[1771161869648,4e-05,69480.0,69472.0,0.07197065]
[1771161869888,4e-05,69480.0,69469.0,0.29095995]
[1771161870116,4e-05,69480.0,69469.0,0.26733494]
[1771161870299,4e-05,69482.0,69472.0,0.02362501]
[1771161870511,0.07208197,69482.0,69474.0,0.07196877]
[1771161870953,0.07175318,69482.0,69474.0,0.07196877]
[1771161871152,0.07158876,69482.0,69474.0,0.07196877]
[1771161871385,0.07158876,69482.0,69472.0,0.09563594]
[1771161871386,0.07158876,69482.0,69473.0,0.07197027]
[1771161871811,0.0004,69483.0,69476.0,0.07196706]
[1771161872046,4.372e-05,69481.0,69476.0,0.07196706]
[1771161872247,4.372e-05,69481.0,69474.0,0.07196877]
[1771161872467,4.372e-05,69481.0,69475.0,0.07196758]
[1771161872669,4.372e-05,69481.0,69476.0,0.07196727]
[1771161872888,4.372e-05,69481.0,69480.0,0.07196315]
[1771161873958,4.372e-05,69481.0,69475.0,0.07196833]
[1771161874382,4.372e-05,69481.0,69474.0,8.083e-05]
[1771161874593,0.02279703,69481.0,69468.0,4e-05]
[1771161874794,0.07196839,69475.0,69468.0,4e-05]
[1771161875547,0.07196839,69475.0,69467.0,0.07197571]
[1771161875762,0.09470305,69493.0,69473.0,0.26733494]
[1771161875959,4e-05,69510.0,69474.0,0.26733494]
[1771161876250,4e-05,69510.0,69473.0,8.08e-05]
[1771161876251,4e-05,69510.0,69491.0,0.02362501]
[1771161876427,0.0004,69518.0,69514.0,0.26733494]
[1771161876659,0.0004,69518.0,69515.0,0.02362501]
[1771161876865,0.0004,69518.0,69511.0,0.29095995]
[1771161877065,0.0004,69518.0,69512.0,0.26733494]
[1771161877724,0.00083225,69518.0,69512.0,0.26733494]
[1771161877968,0.00012094,69517.0,69514.0,0.26733494]
[1771161878251,0.00012094,69517.0,69514.0,0.29091995]
[1771161878656,2.518e-05,69520.0,69516.0,0.26733494]
[1771161878873,0.07191973,69522.0,69517.0,0.26733494]
[1771161879088,0.28765681,69528.0,69517.0,0.26733494]
[1771161879301,0.28765681,69528.0,69517.0,0.29095995]
[1771161879758,0.07191967,69523.0,69517.0,0.29095995]
[1771161879932,0.28765681,69528.0,69517.0,0.29095995]
[1771161880106,0.07231463,69527.0,69517.0,0.29095995]
[1771161880435,0.07191653,69526.0,69517.0,0.29095995]
[1771161880649,0.07191653,69526.0,69510.0,0.28776493]
[1771161880650,0.0004,69534.0,69522.0,0.26733494]
[1771161880880,4e-05,69540.0,69532.0,0.02362501]
[1771161881120,4e-05,69540.0,69522.0,0.00043225]
[1771161881121,4e-05,69540.0,69534.0,0.29095995]
[1771161881356,4e-05,69540.0,69534.0,0.26733494]
[1771161881577,4e-05,69540.0,69537.0,0.02362501]
[1771161882918,0.27261417,69538.0,69519.0,0.26733494]
[1771161883069,0.00557116,69539.0,69514.0,0.4165675]
[1771161883070,0.26983321,69539.0,69514.0,0.4165675]
[1771161883270,0.07192071,69521.0,69512.0,0.02464906]